bitfinex-derivatives/quotes_BTCF0:USTF0_20250318
["timestamp","ask_amount","ask_price","bid_price","bid_amount"]
[1742308715210,0.3294248,81890.0,81889.0,0.14913116]
[1742308715416,0.2073,81890.0,81889.0,0.14913116]
[1742308715616,0.2083,81890.0,81889.0,0.14913116]
[1742308715920,0.4304248,81890.0,81889.0,0.14913116]
[1742308716422,0.4314248,81890.0,81889.0,0.02700496]
[1742308716721,0.1221307,81886.0,81885.0,0.00018326]
[1742308716924,0.1716307,81886.0,81885.0,0.00018326]
[1742308717224,0.1221501,81875.0,81874.0,0.1221476]
[1742308717421,0.2221501,81875.0,81874.0,0.1221476]
[1742308717727,0.1221501,81873.0,81872.0,0.3608]
[1742308718227,0.1221501,81873.0,81872.0,0.4829516]
[1742308718412,0.2670501,81873.0,81872.0,0.1500929]
[1742308718611,0.1449,81873.0,81872.0,0.1500929]
[1742308718820,0.1419,81873.0,81872.0,0.1500929]
[1742308719013,0.1419,81873.0,81872.0,0.2222929]
[1742308719515,0.2640501,81873.0,81872.0,0.2262929]
[1742308720116,0.2640501,81873.0,81872.0,0.2252929]
[1742308720319,0.2640501,81873.0,81872.0,0.1530929]
[1742308721226,0.2640501,81873.0,81872.0,0.1570929]
[1742308721612,0.2640501,81873.0,81872.0,0.0349413]
[1742308722012,0.2640501,81873.0,81872.0,0.0309413]
[1742308722221,0.2640501,81873.0,81872.0,0.0329413]
[1742308722424,0.2640501,81873.0,81872.0,0.0299413]
[1742308722626,0.2640501,81873.0,81872.0,0.0319413]
[1742308722832,0.3640501,81873.0,81872.0,0.0319413]
[1742308723017,0.3640501,81873.0,81872.0,0.1520929]
[1742308723224,0.2640501,81873.0,81872.0,0.1530929]
[1742308723424,0.3640501,81873.0,81872.0,0.1530929]
[1742308723621,0.3640501,81873.0,81872.0,0.1510929]
[1742308723622,0.2958501,81873.0,81872.0,0.1510929]
[1742308723930,0.3640501,81873.0,81872.0,0.1530929]
[1742308724517,0.8269101,81873.0,81864.0,0.88754326]
[1742308724718,0.153962,81865.0,81864.0,0.88754326]
[1742308724924,0.202962,81865.0,81864.0,0.14921951]
[1742308725113,0.408962,81865.0,81864.0,0.12234676]
[1742308725319,0.358962,81865.0,81864.0,0.14984369]
[1742308725521,0.258962,81865.0,81864.0,0.51064369]
[1742308725725,0.2378,81865.0,81864.0,0.51064369]
[1742308725917,0.1378,81865.0,81864.0,0.51064369]
[1742308726118,0.1378,81865.0,81864.0,0.64534369]
[1742308726330,0.1378,81865.0,81864.0,0.64734369]
[1742308727142,0.1378,81865.0,81864.0,0.64934369]
[1742308727725,0.0691,81865.0,81864.0,0.64934369]
[1742308727926,0.03897544,81865.0,81864.0,0.78386369]
[1742308728122,0.02718986,81881.0,81864.0,0.81170019]
[1742308728429,0.0610594,81894.0,81893.0,0.1221188]
[1742308728629,0.1923838,81894.0,81893.0,0.1221188]
[1742308728830,0.2631838,81894.0,81893.0,0.1221188]
[1742308729032,0.2539838,81894.0,81893.0,0.1221188]
[1742308729232,0.0708,81894.0,81893.0,0.14899139]
[1742308729533,0.0708,81894.0,81893.0,0.29109139]
[1742308730032,0.0758,81894.0,81893.0,0.29109139]
[1742308730425,0.005,81894.0,81893.0,0.29109139]
[1742308730727,0.005,81894.0,81893.0,0.42561139]
[1742308731040,0.008,81894.0,81893.0,0.42561139]
[1742308731621,0.005,81894.0,81893.0,0.42561139]
[1742308731833,0.008,81894.0,81893.0,0.42561139]
[1742308732225,0.003,81894.0,81893.0,0.42561139]
[1742308732536,0.005,81894.0,81893.0,0.42561139]
[1742308733740,0.004,81894.0,81893.0,0.42561139]
[1742308734338,0.003,81894.0,81893.0,0.42561139]
[1742308736235,0.002,81894.0,81893.0,0.29109139]
[1742308736939,0.001,81894.0,81893.0,0.29109139]
[1742308737131,0.002,81894.0,81893.0,0.29109139]
[1742308737735,0.001,81894.0,81893.0,0.22019139]
[1742308738043,0.1831842,81893.0,81892.0,0.1221208]
[1742308738232,0.2538842,81893.0,81892.0,0.1221208]
[1742308738636,0.3883242,81893.0,81892.0,0.14604918]
[1742308738934,0.3662009,81893.0,81892.0,0.14604918]
[1742308739138,0.20514,81893.0,81892.0,0.14604918]
[1742308739437,0.20514,81893.0,81892.0,0.21764918]
[1742308739640,0.20714,81893.0,81892.0,0.21764918]
[1742308739833,0.3722603,81893.0,81892.0,0.21764918]
[1742308740231,0.25014,81893.0,81892.0,0.21764918]
[1742308740542,0.3723603,81893.0,81892.0,0.21764918]
[1742308740727,0.3610603,81893.0,81892.0,0.21764918]
[1742308740930,0.1221307,81886.0,81867.0,0.0610788]
[1742308741130,0.1221486,81874.0,81866.0,0.06108]
[1742308741326,0.1221486,81874.0,81867.0,0.0672]
[1742308741544,0.3286486,81874.0,81873.0,0.4829501]
[1742308741844,0.3286486,81874.0,81873.0,0.50749172]
[1742308742029,0.2065,81874.0,81873.0,0.50749172]
[1742308742231,0.1363,81874.0,81873.0,0.64259172]
[1742308742628,0.25676066,81882.0,81881.0,0.1221382]
[1742308743033,0.25576066,81882.0,81881.0,0.1221382]
[1742308743838,0.39946066,81882.0,81881.0,0.1261382]
[1742308744238,0.14388326,81882.0,81881.0,0.2660382]
[1742308744647,0.00018326,81882.0,81881.0,0.2660382]
[1742308744843,0.40045312,81900.0,81897.0,0.1221143]
[1742308745148,0.3175458,81911.0,81910.0,0.1220949]
[1742308746235,0.0681,81912.0,81911.0,0.1220934]
[1742308746440,0.1417,81912.0,81911.0,0.1895934]
[1742308746639,0.263792,81912.0,81911.0,0.21432791]
[1742308746840,0.363792,81912.0,81911.0,0.14682791]
[1742308747042,0.263792,81912.0,81911.0,0.14682791]
[1742308747652,0.1517,81912.0,81911.0,0.14682791]
[1742308747847,0.1517,81912.0,81911.0,0.28722791]
[1742308748346,0.0836,81912.0,81911.0,0.28722791]
[1742308749038,0.01,81912.0,81911.0,0.28722791]
[1742308749353,0.00981674,81912.0,81911.0,0.42162791]
[1742308749663,0.004,81912.0,81911.0,0.42162791]
[1742308749853,0.04882,81922.0,81921.0,0.1220785]
[1742308750052,0.04882,81922.0,81921.0,0.4828785]
[1742308750243,0.04882,81922.0,81921.0,0.6295785]
[1742308751052,0.00305,81930.0,81929.0,0.1220666]
[1742308751436,0.071,81937.0,81936.0,0.1220562]
[1742308751857,0.071,81937.0,81936.0,0.14582433]
[1742308752043,0.1930547,81937.0,81936.0,0.14582433]
[1742308752740,0.2930547,81937.0,81936.0,0.14582433]
[1742308752947,0.2930547,81937.0,81936.0,0.02376813]
[1742308753251,0.2460547,81937.0,81936.0,0.1220562]
[1742308753440,0.2930547,81937.0,81936.0,0.14597273]
[1742308753847,0.2970547,81937.0,81936.0,0.14597273]
[1742308754550,0.2930547,81937.0,81936.0,0.14597273]
[1742308754752,0.2970547,81937.0,81936.0,0.14597273]
[1742308754947,0.2970547,81937.0,81936.0,0.02391653]
[1742308755150,0.2970547,81937.0,81936.0,0.1220562]
[1742308756152,0.2970547,81937.0,81936.0,0.14675608]
[1742308759655,0.3675547,81937.0,81936.0,0.14675608]
[1742308761046,0.3675547,81937.0,81936.0,0.02469988]
[1742308761348,0.3675547,81937.0,81936.0,0.1220562]
[1742308761653,0.3675547,81937.0,81936.0,0.14673876]
[1742308765040,0.2675547,81937.0,81936.0,0.02468256]
[1742308765245,0.1220592,81934.0,81933.0,0.06103]
[1742308765445,0.2562992,81934.0,81933.0,0.06103]
[1742308765645,0.2220651,81930.0,81929.0,0.1220649]
[1742308765846,0.05,81927.0,81926.0,0.0610354]
[1742308766054,0.07,81929.0,81928.0,0.1220681]
[1742308766259,0.07,81929.0,81928.0,0.6238681]
[1742308767159,0.2920666,81929.0,81928.0,0.5567681]
[1742308767656,0.3637666,81929.0,81928.0,0.5567681]
[1742308767952,0.2637666,81929.0,81928.0,0.5567681]
[1742308768157,0.1417,81929.0,81928.0,0.5567681]
[1742308768359,0.1417,81929.0,81928.0,0.6238681]
[1742308768658,0.071,81929.0,81928.0,0.6238681]
[1742308771361,0.144,81929.0,81928.0,0.6238681]
[1742308771543,0.2660666,81929.0,81928.0,0.5567681]
[1742308771750,0.2660666,81929.0,81928.0,0.3608]
[1742308771956,0.5002666,81929.0,81928.0,0.4828681]
[1742308772563,0.4002666,81929.0,81928.0,0.4828681]
[1742308772858,0.1220696,81927.0,81926.0,0.02480904]
[1742308773044,0.122077,81922.0,81921.0,0.00018313]
[1742308773347,0.95636125,81922.0,81921.0,0.00018313]
[1742308773546,0.4108,81922.0,81921.0,0.12226163]
[1742308773756,0.02850986,81930.0,81927.0,0.1220681]
[1742308773757,0.1386,81930.0,81927.0,0.1220681]
[1742308773955,0.0610298,81934.0,81933.0,0.1220607]
[1742308774462,0.1220607,81933.0,81931.0,0.0610318]
[1742308774657,0.2562221,81932.0,81931.0,0.0610318]
[1742308774853,0.3062221,81932.0,81931.0,0.0610318]
[1742308775358,0.18416,81932.0,81931.0,0.0610318]
[1742308775757,0.13416,81932.0,81931.0,0.1957318]
[1742308776361,0.2562221,81932.0,81931.0,0.1957318]
[1742308776548,0.2562221,81932.0,81931.0,0.0610318]
[1742308777059,0.05082,81933.0,81932.0,0.1220621]
[1742308777359,0.04882,81933.0,81932.0,0.1934621]
[1742308777560,0.04882,81933.0,81932.0,0.2611621]
[1742308778149,0.04882,81933.0,81932.0,0.3953221]
[1742308778845,0.04882,81933.0,81932.0,0.2611621]
[1742308779848,0.04982,81933.0,81932.0,0.2611621]
[1742308780962,0.04982,81933.0,81932.0,0.3953221]
[1742308782049,0.06732,81933.0,81932.0,0.3953221]
[1742308782251,0.04982,81933.0,81932.0,0.3953221]
[1742308782458,0.04982,81933.0,81932.0,0.2611621]
[1742308782657,0.06732,81933.0,81932.0,0.2611621]
[1742308782960,0.04982,81933.0,81932.0,0.1934621]
[1742308783161,0.04982,81933.0,81932.0,0.2623621]
[1742308784266,0.1718807,81933.0,81932.0,0.2623621]
[1742308784469,0.04982,81933.0,81932.0,0.2623621]
[1742308785858,0.04882,81933.0,81932.0,0.2623621]
[1742308786062,0.04982,81933.0,81932.0,0.2623621]
[1742308786265,0.00329,81944.0,81943.0,0.1220458]
[1742308786467,0.00329,81944.0,81943.0,0.4828458]
[1742308787066,0.00329,81944.0,81943.0,0.2567458]
[1742308787658,0.00729,81944.0,81943.0,0.2567458]
[1742308788562,0.00729,81944.0,81943.0,0.1896458]
[1742308789553,0.10729,81944.0,81943.0,0.1896458]
[1742308789957,0.2293343,81944.0,81943.0,0.1896458]
[1742308790665,0.1293343,81944.0,81943.0,0.1220458]
[1742308790870,0.2017343,81944.0,81943.0,0.1220458]
[1742308792571,0.2710343,81944.0,81943.0,0.1921458]
[1742308792961,0.0610237,81943.0,81940.0,0.2440953]
[1742308793258,0.0610237,81943.0,81940.0,0.0610243]
[1742308793259,0.1220487,81941.0,81940.0,0.0610243]
[1742308793673,0.2595487,81941.0,81940.0,0.0610243]
[1742308794569,0.1220502,81940.0,81939.0,0.4828508]
[1742308794872,0.1220636,81931.0,81930.0,0.0610325]
[1742308795673,0.1312636,81931.0,81930.0,0.0610325]
[1742308796366,0.395801,81935.0,81931.0,0.0610312]
[1742308796673,0.327901,81935.0,81934.0,0.1220592]
[1742308796867,0.370901,81935.0,81934.0,0.1220592]
[1742308797069,0.337101,81935.0,81934.0,0.1885592]
[1742308797975,0.1220666,81929.0,81928.0,0.1220666]
[1742308798272,0.2220666,81929.0,81928.0,0.2441333]
[1742308798575,0.141,81929.0,81928.0,0.2441333]
[1742308798882,0.2630666,81929.0,81928.0,0.2441333]
[1742308799176,0.141,81929.0,81928.0,0.2441333]
[1742308799873,0.068,81929.0,81928.0,0.2441333]
[1742308800373,0.073,81940.0,81939.0,0.1220517]
[1742308800678,0.15154,81942.0,81941.0,0.1220487]
[1742308800863,0.2735873,81942.0,81941.0,0.1945487]
[1742308801166,0.13404,81942.0,81941.0,0.1945487]
[1742308801374,0.20344,81942.0,81941.0,0.1945487]
[1742308801765,0.3254873,81942.0,81941.0,0.1945487]
[1742308801969,0.0694,81942.0,81941.0,0.1945487]
[1742308802185,0.0869,81942.0,81941.0,0.1220487]
[1742308802372,0.2234473,81942.0,81941.0,0.1220487]
[1742308802562,0.0694,81942.0,81941.0,0.1220487]
[1742308802763,0.0694,81942.0,81941.0,0.2654487]
[1742308803164,0.0694,81942.0,81941.0,0.1220487]
[1742308803370,0.1734,81942.0,81941.0,0.1220487]
[1742308803677,0.004,81942.0,81941.0,0.1220487]
[1742308803974,0.004,81942.0,81941.0,0.3273487]
[1742308804672,0.004,81942.0,81941.0,0.2602487]
[1742308805373,0.1260473,81942.0,81941.0,0.1220487]
[1742308805574,0.2260473,81942.0,81941.0,0.1220487]
[1742308805771,0.2984473,81942.0,81941.0,0.1220487]
[1742308806470,0.0724,81942.0,81941.0,0.1220487]
[1742308806675,0.0724,81942.0,81941.0,0.1953487]
[1742308807278,0.0610185,81949.0,81941.0,0.1953487]
[1742308807279,0.4218056,81967.0,81947.0,0.0610197]
[1742308807465,0.0676,81956.0,81955.0,0.1220279]
[1742308807779,0.0676,81956.0,81955.0,0.2548279]
[1742308807975,0.0688,81966.0,81965.0,0.122013]
[1742308808275,0.3677115,81966.0,81965.0,0.07568143]
[1742308808476,0.4248115,81966.0,81965.0,0.07568143]
[1742308808776,0.3028,81966.0,81965.0,0.07568143]
[1742308809379,0.1688,81966.0,81965.0,0.14188143]
[1742308809581,0.1323,81966.0,81965.0,0.21248143]
[1742308809783,0.0698,81966.0,81965.0,0.21248143]
[1742308810579,0.1357,81966.0,81965.0,0.21448143]
[1742308810776,0.1357,81966.0,81965.0,0.21548143]
[1742308811077,0.0669,81966.0,81965.0,0.21548143]
[1742308811275,0.0669,81966.0,81965.0,0.21348143]
[1742308811873,0.1365,81966.0,81965.0,0.21348143]
[1742308812676,0.13396,81978.0,81977.0,0.1219951]
[1742308814184,0.36144,81984.0,81983.0,0.1219862]
[1742308814374,0.105,82000.0,81982.0,0.4827837]
[1742308814375,0.1219862,81983.0,81982.0,0.4827837]
[1742308814572,0.0696,81983.0,81982.0,0.6047682]
[1742308814973,0.1915862,81983.0,81982.0,0.6722682]
[1742308815174,0.1915862,81983.0,81982.0,0.3608]
[1742308815485,0.2415862,81983.0,81982.0,0.14370247]
[1742308815684,0.3112862,81983.0,81982.0,0.14370247]
[1742308815880,0.1893,81983.0,81982.0,0.14370247]
[1742308816181,0.3992462,81983.0,81982.0,0.14370247]
[1742308817197,0.1219937,81979.0,81976.0,0.0609979]
[1742308817387,0.1219951,81977.0,81976.0,0.0609979]
[1742308817874,0.0610013,81972.0,81970.0,0.1220004]
[1742308818070,0.199602,81971.0,81969.0,0.000183]
[1742308818284,0.0610117,81958.0,81955.0,0.3608]
[1742308818473,0.0610158,81953.0,81947.0,0.0610192]
[1742308818790,0.1220383,81948.0,81947.0,0.1830559]
[1742308818982,0.2559583,81948.0,81947.0,0.1830559]
[1742308819183,0.3859583,81948.0,81947.0,0.1830559]
[1742308819385,0.1220398,81947.0,81946.0,0.02142579]
[1742308819684,0.1830898,81937.0,81936.0,0.1220487]
[1742308819873,0.1220621,81932.0,81931.0,0.1830909]
[1742308820271,0.1970282,81936.0,81932.0,0.061031]
[1742308820479,0.1182,81933.0,81932.0,0.2500931]
[1742308820692,0.3608,81950.0,81932.0,0.2500931]
[1742308820693,0.5438494,81953.0,81947.0,0.005]
[1742308820874,0.5438494,81953.0,81952.0,0.1220324]
[1742308820875,0.0610168,81953.0,81952.0,0.1220324]
[1742308821191,0.1110168,81953.0,81952.0,0.1220324]
[1742308821581,0.05,81953.0,81952.0,0.1220324]
[1742308821888,0.1830612,81948.0,81947.0,0.08302324]
[1742308822085,0.07,81952.0,81945.0,0.4218206]
[1742308822390,0.07,81952.0,81951.0,0.1220338]
[1742308822576,0.20392,81952.0,81951.0,0.1220338]
[1742308822775,0.002,81953.0,81952.0,0.1220324]
[1742308823186,0.002,81953.0,81952.0,0.6245324]
[1742308823684,0.004,81953.0,81952.0,0.6245324]
[1742308824183,0.004,81953.0,81952.0,0.5510324]
[1742308824184,0.002,81953.0,81952.0,0.5510324]
[1742308824386,0.003,81953.0,81952.0,0.5510324]
[1742308825487,0.002,81953.0,81952.0,0.5510324]
[1742308825675,0.003,81953.0,81952.0,0.5510324]
[1742308825876,0.1250309,81953.0,81952.0,0.5510324]
[1742308826182,0.2250309,81953.0,81952.0,0.5510324]
[1742308826388,0.1342309,81953.0,81952.0,0.5510324]
[1742308826690,0.2250309,81953.0,81952.0,0.4828324]
[1742308827483,0.1425309,81953.0,81952.0,0.3608]
[1742308827685,0.1415309,81953.0,81952.0,0.4828324]
[1742308827882,0.1220368,81949.0,81948.0,0.1220378]
[1742308828083,0.1220383,81948.0,81947.0,0.02181547]
[1742308828272,0.1220428,81945.0,81939.0,0.1220515]
[1742308828584,0.1680428,81945.0,81943.0,0.1220451]
[1742308828987,0.1680428,81945.0,81944.0,0.1222273]
[1742308829186,0.1640428,81945.0,81944.0,0.1222273]
[1742308829589,0.1640428,81945.0,81944.0,0.000183]
[1742308829885,0.3097428,81945.0,81944.0,0.1222273]
[1742308830587,0.3097428,81945.0,81944.0,0.14418931]
[1742308830887,0.32962,81945.0,81944.0,0.14818931]
[1742308831090,0.32962,81945.0,81944.0,0.22458931]
[1742308831585,0.4516628,81945.0,81944.0,0.22358931]
[1742308831978,0.1957,81945.0,81944.0,0.22358931]
[1742308832182,0.27962,81945.0,81944.0,0.29758931]
[1742308832886,0.1457,81945.0,81944.0,0.14918931]
[1742308833491,0.38058425,81951.0,81950.0,0.1220353]
[1742308833785,0.38058425,81951.0,81950.0,0.4828353]
[1742308834090,0.1407,81955.0,81954.0,0.1220294]
[1742308834487,0.1407,81955.0,81954.0,0.2655294]
[1742308836997,0.1427,81955.0,81954.0,0.2655294]
[1742308837491,0.003,81955.0,81954.0,0.2655294]
[1742308838077,0.002,81955.0,81954.0,0.2655294]
[1742308838282,0.003,81955.0,81954.0,0.2655294]
[1742308838489,0.001,81955.0,81954.0,0.2655294]
[1742308838791,0.003,81955.0,81954.0,0.2655294]
[1742308839292,0.002,81955.0,81954.0,0.2655294]
[1742308839491,0.003,81955.0,81954.0,0.2655294]
[1742308839882,0.1425,81974.0,81954.0,0.1435]
[1742308840193,0.1402,81973.0,81972.0,0.4828026]
[1742308841783,0.1492,81973.0,81972.0,0.4828026]
[1742308842579,0.2712011,81973.0,81972.0,0.4828026]
[1742308843090,0.3394011,81973.0,81972.0,0.4828026]
[1742308843478,0.3394011,81973.0,81972.0,0.1220026]
[1742308843684,0.0610028,81970.0,81964.0,0.000183]
[1742308843885,0.122013,81965.0,81964.0,0.021846]
[1742308844085,0.122013,81965.0,81964.0,0.1438582]
[1742308844288,0.263913,81965.0,81964.0,0.1438582]
[1742308844897,0.0734,81965.0,81964.0,0.1438582]
[1742308845099,0.0685,81972.0,81968.0,0.0610038]
[1742308845393,0.136,81972.0,81971.0,0.1220041]
[1742308846192,0.1220041,81971.0,81970.0,0.4828047]
[1742308846387,0.1220041,81971.0,81970.0,0.3608]
[1742308846586,0.0610058,81966.0,81964.0,0.1438593]
[1742308846782,0.263013,81965.0,81964.0,0.1438593]
[1742308846986,0.141,81965.0,81964.0,0.1438593]
[1742308847589,0.1502,81965.0,81964.0,0.1438593]
[1742308847796,0.141,81965.0,81964.0,0.1438593]
[1742308848003,0.263013,81965.0,81964.0,0.1438593]
[1742308848301,0.146,81965.0,81964.0,0.1438593]
[1742308848999,0.005,81965.0,81964.0,0.1438593]
[1742308849305,0.00867,81979.0,81978.0,0.1219937]
[1742308849484,0.1439,81985.0,81984.0,0.1219847]
[1742308850891,0.36144,82015.0,81984.0,0.0695]
[1742308851092,0.3608,82015.0,81999.0,0.1219624]
[1742308851285,0.121948,82009.0,81999.0,0.4827624]
[1742308851492,0.0609747,82008.0,81999.0,0.4827624]
[1742308851699,0.0609751,82008.0,81999.0,0.4827624]
[1742308851903,0.2269609,82000.0,81999.0,0.4344]
[1742308852091,0.2269609,82000.0,81999.0,0.4827624]
[1742308852396,0.1765,82000.0,81999.0,0.4847624]
[1742308852604,0.1765,82000.0,81999.0,0.50680738]
[1742308852799,0.1765,82000.0,81999.0,0.64930738]
[1742308853004,0.2984609,82000.0,81999.0,0.64930738]
[1742308853189,0.1765,82000.0,81999.0,0.64930738]
[1742308854097,0.2469,82000.0,81999.0,0.64730738]
[1742308854295,0.2469,82000.0,81999.0,0.57940738]
[1742308854499,0.3688609,82000.0,81999.0,0.38384498]
[1742308854708,0.10794129,82000.0,81999.0,0.50680738]
[1742308854889,0.38672129,82000.0,81999.0,0.50680738]
[1742308855486,0.50868219,82000.0,81999.0,0.50680738]
[1742308855689,0.38672129,82000.0,81999.0,0.65070738]
[1742308855993,0.17814129,82000.0,81999.0,0.64870738]
[1742308856902,0.31342129,82000.0,81999.0,0.64870738]
[1742308857089,0.43538219,82000.0,81999.0,0.64870738]
[1742308857291,0.07724009,82000.0,81999.0,0.64870738]
[1742308857594,0.02724009,82000.0,81999.0,0.64870738]
[1742308857794,0.02724009,82000.0,81999.0,0.64970738]
[1742308858190,0.01948346,82000.0,81999.0,0.64970738]
[1742308858386,0.01948346,82000.0,81999.0,0.65070738]
[1742308858596,0.01948346,82000.0,81999.0,0.64970738]
[1742308858789,0.01948346,82000.0,81999.0,0.65070738]
[1742308859393,0.01948346,82000.0,81999.0,0.64970738]
[1742308859599,0.01948346,82000.0,81999.0,0.65170738]
[1742308859799,0.01948346,82000.0,81999.0,1.53170738]
[1742308859992,0.14144436,82000.0,81999.0,0.50780738]
[1742308860199,0.01948346,82000.0,81999.0,0.50580738]
[1742308860393,0.01948346,82000.0,81999.0,0.50780738]
[1742308860394,0.14144436,82000.0,81999.0,0.50780738]
[1742308860594,0.14144436,82000.0,81999.0,0.64910738]
[1742308860790,0.15768346,82000.0,81999.0,0.64910738]
[1742308860989,0.15768346,82000.0,81999.0,0.64810738]
[1742308861187,0.08818346,82000.0,81999.0,0.64910738]
[1742308862103,0.08818346,82000.0,81999.0,0.64810738]
[1742308862505,0.21014436,82000.0,81999.0,0.64810738]
[1742308862800,0.21014436,82000.0,81999.0,0.57610738]
[1742308863098,0.75586436,82000.0,81999.0,0.003]
[1742308863303,0.75586436,82000.0,81991.0,0.3608]
[1742308863304,0.1709728,81992.0,81991.0,0.3608]
[1742308863501,0.1219847,81984.0,81983.0,0.000183]
[1742308863702,0.3070247,81984.0,81983.0,0.01966697]
[1742308863895,0.4476247,81984.0,81983.0,0.000183]
[1742308864096,0.1219877,81982.0,81981.0,0.3608]
[1742308864402,0.1210085,81968.0,81962.0,0.1220161]
[1742308864595,0.1220175,81963.0,81962.0,0.0610071]
[1742308864796,0.3570575,81963.0,81962.0,0.0610071]
[1742308865102,0.4971575,81963.0,81962.0,0.0610071]
[1742308865306,0.4941575,81963.0,81962.0,0.08067828]
[1742308865500,0.4941575,81963.0,81962.0,0.01967118]
[1742308865707,0.6051655,81963.0,81962.0,0.1220175]
[1742308866010,0.122019,81961.0,81960.0,0.1220194]
[1742308866212,0.116019,81961.0,81960.0,0.1220194]
[1742308866502,0.252119,81961.0,81960.0,0.1220194]
[1742308866707,0.1411,81961.0,81960.0,0.2641194]
[1742308866905,0.263119,81961.0,81960.0,0.2641194]
[1742308867311,0.360119,81961.0,81960.0,0.28446291]
[1742308868201,0.13504,81963.0,81960.0,0.28446291]
[1742308868403,0.13504,81963.0,81962.0,0.1220175]
[1742308868796,0.000183,81971.0,81970.0,0.1220056]
[1742308868997,0.1221871,81971.0,81970.0,0.1939056]
[1742308869201,0.000183,81971.0,81970.0,0.1939056]
[1742308869398,0.000183,81971.0,81970.0,1.0739056]
[1742308869601,0.2221871,81971.0,81970.0,1.1454056]
[1742308869806,0.2221871,81971.0,81970.0,1.0020056]
[1742308870011,0.2221871,81971.0,81966.0,0.1830152]
[1742308870012,0.1220115,81967.0,81966.0,0.1830152]
[1742308870197,0.2573715,81967.0,81966.0,0.1830152]
[1742308870510,0.2749715,81967.0,81966.0,0.1830152]
[1742308870703,0.1,81961.0,81954.0,0.000183]
[1742308870910,0.1448,81966.0,81960.0,0.14436051]
[1742308871098,0.3278255,81966.0,81965.0,0.122013]
[1742308871300,0.3454255,81966.0,81965.0,0.122013]
[1742308871509,0.1624,81966.0,81965.0,0.122013]
[1742308871705,0.1624,81966.0,81965.0,0.261613]
[1742308871706,0.1448,81966.0,81965.0,0.261613]
[1742308872205,0.0715,81966.0,81965.0,0.622413]
[1742308872609,0.1935115,81966.0,81965.0,0.622413]
[1742308873100,0.122016,81963.0,81962.0,0.0610083]
[1742308873301,0.1220219,81959.0,81955.0,0.1298138]
[1742308873600,0.13492,81959.0,81958.0,0.6048434]
[1742308873909,0.3247419,81959.0,81958.0,0.38064437]
[1742308874113,0.05,81955.0,81940.0,0.00092]
[1742308874306,0.1720458,81945.0,81944.0,0.0610201]
[1742308874512,0.3070058,81945.0,81944.0,0.0610201]
[1742308874708,0.3070058,81945.0,81944.0,0.08060901]
[1742308875100,0.4475058,81945.0,81944.0,0.08060901]
[1742308875503,0.4475058,81945.0,81944.0,0.01958891]
[1742308875705,0.1220458,81943.0,81942.0,0.0610229]
[1742308876020,0.1720547,81937.0,81936.0,0.1222391]
[1742308876205,0.3070947,81937.0,81936.0,0.1222391]
[1742308876713,0.18504,81937.0,81936.0,0.14256846]
[1742308876903,0.25538,81937.0,81936.0,0.28336846]
[1742308877233,0.071,81950.0,81949.0,0.1220368]
[1742308877517,0.20538,81950.0,81949.0,0.1220368]
[1742308877706,0.3274153,81950.0,81949.0,0.1220368]
[1742308877907,0.3274153,81950.0,81949.0,0.1943368]
[1742308878107,0.3366153,81950.0,81949.0,0.1943368]
[1742308878309,0.20538,81950.0,81949.0,0.1943368]
[1742308878617,0.3274153,81950.0,81949.0,0.1943368]
[1742308878812,0.4274153,81950.0,81949.0,0.1943368]
[1742308879009,0.4106153,81950.0,81949.0,0.1943368]
[1742308879216,0.27938,81950.0,81949.0,0.1943368]
[1742308879408,0.27938,81950.0,81949.0,0.2628368]
[1742308879718,0.4014153,81950.0,81949.0,0.2628368]
[1742308879906,0.4106153,81950.0,81949.0,0.1943368]
[1742308880099,0.27938,81950.0,81949.0,0.1943368]
[1742308880305,0.050183,81953.0,81952.0,0.1220324]
[1742308880504,0.19310527,81980.0,81960.0,0.1220204]
[1742308880505,0.13456,81961.0,81960.0,0.1220204]
[1742308880802,0.1830456,81954.0,81952.0,0.3608]
[1742308881004,0.4251309,81953.0,81952.0,0.3608]
[1742308881205,0.4448309,81953.0,81952.0,0.3608]
[1742308881404,0.5448309,81953.0,81952.0,0.3608]
[1742308881611,0.4623309,81953.0,81952.0,0.3608]
[1742308881806,0.4623309,81953.0,81949.0,0.0610181]
[1742308881807,0.1220383,81948.0,81944.0,0.0612044]
[1742308882011,0.1220383,81948.0,81945.0,0.1220424]
[1742308882012,0.1830635,81946.0,81945.0,0.1220424]
[1742308882210,0.3177435,81946.0,81945.0,0.1220424]
[1742308882415,0.1220428,81945.0,81944.0,0.000183]
[1742308882615,0.2220428,81945.0,81944.0,0.000183]
[1742308882815,0.3610428,81945.0,81944.0,0.000183]
[1742308883414,0.3610428,81945.0,81944.0,0.1222273]
[1742308883711,0.2702428,81945.0,81944.0,0.1222273]
[1742308883919,0.2610428,81945.0,81944.0,0.1222273]
[1742308884217,0.3610428,81945.0,81944.0,0.000183]
[1742308884415,0.0715,81945.0,81944.0,0.2689273]
[1742308884611,0.0675,81953.0,81952.0,0.1220324]
[1742308884815,0.25178,81953.0,81952.0,0.2676324]
[1742308885208,0.35166,81953.0,81952.0,0.2676324]
[1742308886012,0.05,81953.0,81952.0,0.2676324]
[1742308886220,0.0715,81956.0,81955.0,0.1220279]
[1742308886713,0.2935264,81956.0,81955.0,0.2659279]
[1742308886914,0.1935264,81956.0,81955.0,0.2659279]
[1742308887422,0.2935264,81956.0,81955.0,0.2659279]
[1742308887618,0.2935264,81956.0,81955.0,0.1220279]
[1742308887819,0.1830456,81954.0,81953.0,0.1220296]
[1742308888011,0.2332456,81954.0,81953.0,0.1220296]
[1742308888211,0.2830456,81954.0,81953.0,0.1220296]
[1742308888412,0.1830456,81954.0,81953.0,0.1220296]
[1742308888617,0.0610147,81954.0,81953.0,0.1220296]
[1742308888827,0.2497133,81956.0,81955.0,0.1220279]
[1742308889223,0.1887,81956.0,81955.0,0.2631279]
[1742308889611,0.05,81956.0,81955.0,0.2631279]
[1742308889811,0.134063,81961.0,81960.0,0.1220204]
[1742308890012,0.000183,81961.0,81960.0,0.6239204]
[1742308890320,0.122202,81961.0,81960.0,0.6239204]
[1742308890727,0.068983,81961.0,81960.0,0.6239204]
[1742308890915,0.000183,81961.0,81960.0,0.6239204]
[1742308892016,0.000183,81961.0,81960.0,0.64364067]
[1742308892238,0.001183,81961.0,81960.0,0.64364067]
[1742308892532,0.0688,81970.0,81969.0,0.1220071]
[1742308893024,0.0688,81970.0,81969.0,0.2624071]
[1742308893717,0.1908056,81970.0,81969.0,0.2624071]
[1742308894330,0.1829775,81984.0,81983.0,0.1829755]
[1742308894518,0.3168575,81984.0,81983.0,0.1829755]
[1742308894917,0.1219877,81982.0,81981.0,0.0609943]